fUSD/lending_fUSD_20241104
["ID","MTS","AMOUNT","RATE_DAILY","PERIOD"]
[341297340,1730742723273,-1088.0,0.00039767,2]
[341297341,1730742723282,-165.244,0.00039767,2]
[341297342,1730742723291,-250.0,0.00039767,2]
[341297343,1730742723300,-250.0,0.00039767,2]
[341297344,1730742723310,-500.0,0.00039876,10]
[341297345,1730742723319,-500.0,0.00039876,10]
[341297346,1730742723329,-500.0,0.00039876,10]
[341297347,1730742723339,-158.09136713,0.00039876,10]
[341297348,1730742723348,-500.0,0.00039876,10]
[341297349,1730742723358,-500.0,0.00039876,10]
[341297350,1730742723367,-500.0,0.00039876,10]
[341297351,1730742723376,-1000.0,0.00039921,2]
[341297352,1730742723385,-152.93,0.0004,2]
[341297353,1730742723395,-152.93,0.0004,2]
[341297354,1730742723404,-152.93,0.0004,2]
[341297355,1730742723414,-201.97128,0.00040088,7]
[341297356,1730742723423,-170.09,0.000401,31]
[341297357,1730742723433,-170.09,0.000401,31]
[341297358,1730742723443,-170.09,0.000401,31]
[341297359,1730742723454,-170.09,0.000401,31]
[341297360,1730742723463,-170.09,0.000401,31]
[341297361,1730742723473,-170.09,0.000401,31]
[341297362,1730742723482,-170.09,0.000401,31]
[341297363,1730742723492,-170.09,0.000401,31]
[341297364,1730742723502,-170.09,0.000401,31]
[341297365,1730742723511,-170.09,0.000401,31]
[341297366,1730742723520,-170.09,0.000401,31]
[341297367,1730742723530,-170.09,0.000401,31]
[341297368,1730742723539,-170.09,0.000401,31]
[341297369,1730742723548,-170.09,0.000401,31]
[341297370,1730742723559,-170.09,0.000401,31]
[341297371,1730742723568,-170.09,0.000401,31]
[341297372,1730742723578,-170.09,0.000401,31]
[341297373,1730742723588,-170.09,0.000401,31]
[341297374,1730742723598,-170.09,0.000401,31]
[341297375,1730742723607,-170.09,0.000401,31]
[341297376,1730742723617,-170.09,0.000401,31]
[341297377,1730742723627,-170.09,0.000401,31]
[341297378,1730742723637,-170.09,0.000401,31]
[341297379,1730742723646,-170.09,0.000401,31]
[341297380,1730742723656,-1998.74,0.000401,42]
[341297381,1730742723666,-151.0,0.000401,14]
[341297382,1730742723675,-204.267232,0.000401,14]
[341297383,1730742723685,-204.267232,0.000401,14]
[341297384,1730742723695,-221.81,0.000402,14]
[341297385,1730742723704,-300.1,0.00040215,43]
[341297386,1730742723715,-201.97128,0.00040288,7]
[341297387,1730742723725,-999.0,0.0004041,120]
[341297388,1730742723735,-201.97128,0.00040488,7]
[341297389,1730742723745,-152.0,0.00040518,5]
[341297390,1730742723755,-201.97128,0.00040688,7]
[341297391,1730742723765,-666.87,0.00040708,120]
[341297392,1730742723775,-181.0,0.00040937,5]
[341297393,1730742723785,-258.63,0.00041,120]
[341297394,1730742723795,-2999.66541338,0.00041069,7]
[341297395,1730742723805,-2688.51850412,0.00041069,7]
[341297396,1730742723815,-150.0,0.00041094,2]
[341297397,1730742723824,-500.0,0.00041094,2]
[341297398,1730742723834,-150.0,0.00041094,2]
[341297399,1730742723844,-150.0,0.00041094,2]
[341297400,1730742723854,-155.36580586,0.00041094,2]
[341297401,1730742723864,-150.0,0.00041094,2]
[341297402,1730742723877,-500.0,0.00041094,2]
[341297403,1730742723887,-500.0,0.00041094,2]
[341297404,1730742723896,-500.0,0.00041094,2]
[341297405,1730742723905,-154.04199164,0.00041094,2]
[341297406,1730742723916,-150.0,0.00041094,2]
[341297407,1730742723926,-500.0,0.00041094,2]
[341297408,1730742723935,-150.0,0.00041094,2]
[341297409,1730742723944,-500.0,0.00041094,2]
[341297410,1730742723955,-500.0,0.00041094,2]
[341297411,1730742723964,-463.0,0.00041094,2]
[341297412,1730742723973,-500.0,0.00041095,2]
[341297413,1730742723983,-500.0,0.00041095,2]
[341297414,1730742723993,-498.05341315,0.00041095,2]
[341297415,1730742724003,-500.0,0.00041095,2]
[341297416,1730742724013,-500.0,0.00041095,2]
[341297417,1730742724022,-500.0,0.00041095,2]
[341297418,1730742724031,-1394.41,0.00041095,2]
[341297419,1730742724040,-1394.41,0.00041095,2]
[341297420,1730742724051,-1394.41,0.00041095,2]
[341297421,1730742724060,-1394.41,0.00041095,2]
[341297422,1730742724070,-1394.41,0.00041095,2]
[341297423,1730742724079,-1394.41,0.00041095,2]
[341297424,1730742724088,-1394.41,0.00041095,2]
[341297425,1730742724098,-1394.41,0.00041095,2]
[341297426,1730742724107,-1394.41,0.00041095,2]
[341297427,1730742724117,-1394.41,0.00041095,2]
[341297428,1730742724127,-1394.41,0.00041095,2]
[341297429,1730742724137,-1394.41,0.00041095,2]
[341297430,1730742724146,-1394.41,0.00041095,2]
[341297431,1730742724156,-1394.41,0.00041095,2]
[341297432,1730742724166,-1394.41,0.00041095,2]
[341297433,1730742724176,-1394.41,0.00041095,2]
[341297434,1730742724186,-1394.41,0.00041095,2]
[341297435,1730742724196,-1394.41,0.00041095,2]
[341297436,1730742724206,-1394.41,0.00041095,2]
[341297437,1730742724215,-1394.41,0.00041095,2]
[341297438,1730742724225,-1394.41,0.00041095,2]
[341297439,1730742724235,-1394.41,0.00041095,2]
[341297440,1730742724244,-1394.41,0.00041095,2]
[341297441,1730742724254,-1394.61729968,0.00041095,2]
[341297442,1730742724264,-150.0,0.00041095,30]
[341297443,1730742724274,-300.0,0.00041095,30]
[341297444,1730742724283,-550.0,0.00041095,30]
[341297445,1730742724293,-500.0,0.00041095,2]
[341297446,1730742724303,-500.0,0.00041095,2]
[341297447,1730742724312,-500.0,0.00041095,2]
[341297448,1730742724322,-500.0,0.00041095,2]
[341297449,1730742724331,-500.0,0.00041095,2]
[341297450,1730742724340,-500.0,0.00041095,2]
[341297451,1730742724350,-500.0,0.00041095,2]
[341297452,1730742724359,-500.0,0.00041095,2]
[341297453,1730742724368,-500.0,0.00041095,2]
[341297454,1730742724378,-500.0,0.00041095,2]
[341297455,1730742724387,-2085.91453782,0.00041095,120]
[341297456,1730742724398,-500.0,0.00041095,2]
[341297457,1730742724407,-500.0,0.00041095,2]
[341297458,1730742724417,-500.0,0.00041095,2]
[341297459,1730742724427,-500.0,0.00041095,2]
[341297460,1730742724437,-500.0,0.00041095,2]
[341297461,1730742724447,-999.0,0.00041095,120]
[341297462,1730742724456,-519.96083659,0.00041095,30]
[341297463,1730742724466,-500.0,0.00041095,2]
[341297464,1730742724475,-500.0,0.00041095,2]
[341297465,1730742724484,-500.0,0.00041095,2]
[341297466,1730742724494,-504.96330541,0.00041095,2]
[341297467,1730742724504,-150.0,0.00041096,2]
[341297468,1730742724513,-157.0,0.00041096,2]
[341297469,1730742724523,-667.19,0.00041183,2]
[341297470,1730742724532,-334.6,0.0004133,52]
[341297471,1730742724542,-150.16663509,0.00041368,2]
[341297472,1730742724551,-500.0,0.00041368,2]
[341297473,1730742724560,-150.0,0.00041368,2]
[341297474,1730742724570,-150.0,0.00041368,2]
[341297475,1730742724579,-150.0,0.00041368,2]
[341297476,1730742724589,-668.11670696,0.00041368,2]
[341297477,1730742724598,-500.0,0.00041368,2]
[341297478,1730742724608,-652.53747143,0.00041368,2]
[341297479,1730742724618,-150.0,0.00041368,2]
[341297480,1730742724629,-500.0,0.00041368,2]
[341297481,1730742724639,-157.09121654,0.00041368,2]
[341297482,1730742724650,-500.0,0.00041368,2]
[341297483,1730742724660,-500.0,0.00041368,2]
[341297484,1730742724670,-463.0,0.00041368,2]
[341297485,1730742724679,-500.0,0.00041642,2]
[341297486,1730742724691,-199.36968545,0.00041642,2]
[341297487,1730742724702,-165.37842607,0.00041642,2]
[341297488,1730742724717,-150.0,0.00041642,2]
[341297489,1730742724726,-967.75159468,0.00041642,2]
[341297490,1730742724736,-150.0,0.00041642,2]
[341297491,1730742724745,-500.0,0.00041642,2]
[341297492,1730742724755,-770.04604944,0.00041642,2]
[341297493,1730742724764,-500.0,0.00041642,2]
[341297494,1730742724773,-463.0,0.00041642,2]
[341297495,1730742724783,-434.83,0.00041751,2]
[341297496,1730742724792,-999.0,0.0004178,120]
[341297497,1730742724801,-170.09,0.000419,31]
[341297498,1730742724812,-170.09,0.000419,31]
[341297499,1730742724821,-170.09,0.000419,31]
[341297500,1730742724832,-170.09,0.000419,31]
[341297501,1730742724841,-170.09,0.000419,31]
[341297502,1730742724850,-170.09,0.000419,31]
[341297503,1730742724860,-170.09,0.000419,31]
[341297504,1730742724870,-170.09,0.000419,31]
[341297505,1730742724882,-170.09,0.000419,31]
[341297506,1730742724891,-170.09,0.000419,31]
[341297507,1730742724901,-170.09,0.000419,31]
[341297508,1730742724910,-170.09,0.000419,31]
[341297509,1730742724921,-170.09,0.000419,31]
[341297510,1730742724930,-170.09,0.000419,31]
[341297511,1730742724939,-170.09,0.000419,31]
[341297512,1730742724949,-170.09,0.000419,31]
[341297513,1730742724959,-170.09,0.000419,31]
[341297514,1730742724969,-170.09,0.000419,31]
[341297515,1730742724979,-170.09,0.000419,31]
[341297516,1730742724988,-170.09,0.000419,31]
[341297517,1730742724998,-170.09,0.000419,31]
[341297518,1730742725007,-170.09,0.000419,31]
[341297519,1730742725016,-170.09,0.000419,31]
[341297520,1730742725025,-170.09,0.000419,31]
[341297521,1730742725034,-229.0,0.000419,30]
[341297522,1730742725044,-500.0,0.00041916,2]
[341297523,1730742725053,-196.94002496,0.00041916,2]
[341297524,1730742725062,-150.0,0.00041916,2]
[341297525,1730742725071,-500.0,0.00041916,2]
[341297526,1730742725080,-500.0,0.00041916,2]
[341297527,1730742725089,-463.0,0.00041916,2]
[341297528,1730742725098,-5075.57868793,0.00041919,120]
[341297529,1730742725107,-3000.0,0.00042,120]
[341297530,1730742725116,-3000.0,0.00042,120]
[341297531,1730742725125,-3000.0,0.00042,120]
[341297532,1730742725135,-3000.0,0.00042,120]
[341297533,1730742725275,-854.65033124,0.00042,43]
[341297534,1730742725284,-232.25363518,0.00042,120]
[341297535,1730742725294,-151.0,0.00042,120]
[341297536,1730742725303,-250.0,0.00042,30]
[341297537,1730742725312,-151.54,0.00042136,120]
[341297538,1730742725322,-150.0,0.00042177,2]
[341297539,1730742725331,-500.0,0.0004219,2]
[341297540,1730742725340,-188.07587348,0.0004219,2]
[341297541,1730742725349,-500.0,0.0004219,2]
[341297542,1730742725359,-500.0,0.0004219,2]
[341297543,1730742725368,-463.0,0.0004219,2]
[341297544,1730742725377,-403.96395934,0.00042223,2]
[341297545,1730742725386,-316.0,0.0004225,48]
[341297546,1730742725395,-152.0,0.00042251,6]
[341297547,1730742725404,-500.0,0.00042464,2]
[341297548,1730742725413,-500.0,0.00042464,2]
[341297549,1730742725422,-463.0,0.00042464,2]
[341297550,1730742725431,-999.0,0.00042465,120]
[341297551,1730742725441,-250.0,0.00042466,2]
[341297552,1730742725451,-403.96395934,0.00042569,2]
[341297553,1730742725460,-500.0,0.00042738,2]
[341297554,1730742725469,-500.0,0.00042738,2]
[341297555,1730742725479,-463.0,0.00042738,2]
[341297556,1730742725488,-250.0,0.0004274,2]
[341297557,1730742725497,-1973.0,0.00042767,2]
[341297558,1730742725507,-1256.0,0.00042767,2]
[341297559,1730742725516,-403.96395934,0.00042848,2]
[341297560,1730742725525,-381.27992955,0.00042854,15]
[341297561,1730742725534,-817.91,0.00042924,30]
[341297562,1730742725543,-500.0,0.00042986,60]
[341297563,1730742725554,-500.0,0.00042986,60]
[341297564,1730742725563,-2000.0,0.00043,30]
[341297565,1730742725573,-2000.0,0.00043,30]
[341297566,1730742725583,-2000.0,0.00043,30]
[341297567,1730742725593,-2000.0,0.00043,30]
[341297568,1730742725602,-2000.0,0.00043,30]
[341297569,1730742725612,-2000.0,0.00043,30]
[341297570,1730742725622,-2000.0,0.00043,30]
[341297571,1730742725632,-2266.5944812,0.00043,4]
[341297572,1730742725642,-2000.0,0.00043,30]
[341297573,1730742725652,-500.0,0.00043012,2]
[341297574,1730742725662,-500.0,0.00043012,2]
[341297575,1730742725672,-463.0,0.00043012,2]
[341297576,1730742725682,-250.0,0.00043014,2]
[341297577,1730742725692,-150.0,0.00043053,2]
[341297578,1730742725703,-150.0,0.00043067,2]
[341297579,1730742725712,-150.0,0.00043068,2]
[341297580,1730742725722,-150.0,0.00043095,2]
[341297581,1730742725731,-150.0,0.00043107,2]
[341297582,1730742725742,-403.96395934,0.0004312,2]
[341297583,1730742725752,-150.0,0.00043126,2]
[341297584,1730742725762,-150.0,0.0004313,2]
[341297585,1730742725774,-150.0,0.00043135,2]
[341297586,1730742725784,-150.0,0.00043142,2]
[341297587,1730742725794,-999.0,0.0004315,120]
[341297588,1730742725804,-150.0,0.0004319,2]
[341297589,1730742725814,-150.0,0.00043197,2]
[341297590,1730742725824,-150.0,0.00043207,2]
[341297591,1730742725834,-274.29683729,0.0004321,20]
[341297592,1730742725844,-150.0,0.00043213,2]
[341297593,1730742725854,-150.0,0.00043217,2]
[341297594,1730742725863,-9000.0,0.00043219,30]
[341297595,1730742725877,-150.0,0.00043224,2]
[341297596,1730742725887,-150.0,0.00043239,2]
[341297597,1730742725896,-150.0,0.00043241,2]
[341297598,1730742725906,-150.0,0.00043252,2]
[341297599,1730742725918,-150.0,0.00043254,2]
[341297600,1730742725929,-150.0,0.00043259,2]
[341297601,1730742725938,-150.0,0.00043263,2]
[341297602,1730742725950,-150.0,0.00043275,2]
[341297603,1730742725960,-150.0,0.00043277,2]
[341297604,1730742725970,-912.00054191,0.00043286,2]
[341297605,1730742725980,-500.0,0.00043286,2]
[341297606,1730742725989,-463.0,0.00043286,2]
[341297607,1730742725999,-150.0,0.00043286,2]
[341297608,1730742726009,-250.0,0.00043288,2]
[341297609,1730742726019,-150.0,0.00043298,2]
[341297610,1730742726029,-1000.0,0.000433,30]
[341297611,1730742726038,-150.0,0.000433,2]
[341297612,1730742726048,-150.0,0.00043303,2]
[341297613,1730742726059,-150.0,0.00043304,2]
[341297614,1730742726069,-150.0,0.00043304,2]
[341297615,1730742726079,-150.0,0.00043332,2]
[341297616,1730742726088,-150.0,0.00043335,2]
[341297617,1730742726097,-150.0,0.00043338,2]
[341297618,1730742726107,-150.0,0.00043341,2]
[341297619,1730742726117,-150.0,0.00043343,2]
[341297620,1730742726127,-150.0,0.00043351,2]
[341297621,1730742726136,-150.0,0.00043352,2]
[341297622,1730742726146,-150.0,0.00043354,2]
[341297623,1730742726156,-150.0,0.00043354,2]
[341297624,1730742726166,-200.3365397,0.0004337,2]
[341297625,1730742726175,-150.0,0.0004337,2]
[341297626,1730742726185,-150.0,0.00043374,2]
[341297627,1730742726195,-150.0,0.00043376,2]
[341297628,1730742726206,-150.0,0.00043381,2]
[341297629,1730742726216,-150.0,0.00043383,2]
[341297630,1730742726226,-150.0,0.00043393,2]
[341297631,1730742726235,-150.0,0.00043394,2]
[341297632,1730742726245,-150.0,0.00043395,2]
[341297633,1730742726254,-150.0,0.00043416,2]
[341297634,1730742726263,-403.96395935,0.00043426,2]
[341297635,1730742726274,-150.0,0.00043437,2]
[341297636,1730742726283,-150.0,0.00043439,2]
[341297637,1730742726293,-150.0,0.00043443,2]
[341297638,1730742726302,-150.0,0.00043448,2]
[341297639,1730742726312,-150.0,0.00043452,2]
[341297640,1730742726322,-150.0,0.00043455,2]
[341297641,1730742726332,-150.0,0.0004347,2]
[341297642,1730742726341,-150.0,0.00043472,2]
[341297643,1730742726351,-150.0,0.00043482,2]
[341297644,1730742726361,-150.0,0.00043483,2]
[341297645,1730742726371,-150.0,0.00043483,2]
[341297646,1730742726380,-150.0,0.00043496,2]
[341297647,1730742726390,-300.0,0.000435,15]
[341297648,1730742726400,-150.0,0.00043502,2]
[341297649,1730742726409,-150.0,0.00043512,2]
[341297650,1730742726419,-150.0,0.00043516,2]
[341297651,1730742726429,-150.0,0.0004352,2]
[341297652,1730742726439,-150.0,0.00043523,2]
[341297653,1730742726451,-150.0,0.00043537,2]
[341297654,1730742726465,-150.0,0.00043548,2]
[341297655,1730742726475,-1000.0,0.0004355,2]
[341297657,1730742726484,-150.0,0.00043554,2]
[341297658,1730742726493,-150.0,0.00043556,2]
[341297659,1730742726503,-500.0,0.0004356,2]
[341297660,1730742726512,-463.0,0.0004356,2]
[341297661,1730742726521,-761.0,0.00043562,2]
[341297662,1730742726531,-444.48,0.00043562,2]
[341297663,1730742726540,-300.0,0.00043562,2]
[341297664,1730742726549,-241.68,0.00043562,2]
[341297665,1730742726558,-250.0,0.00043562,2]
[341297666,1730742726567,-150.0,0.00043565,2]
[341297667,1730742726577,-150.0,0.00043566,2]
[341297668,1730742726586,-150.0,0.00043575,2]
[341297669,1730742726595,-150.0,0.00043576,2]
[341297670,1730742726605,-150.0,0.00043587,2]
[341297671,1730742726614,-326.58,0.00043589,120]
[341297672,1730742726624,-150.0,0.0004359,2]
[341297673,1730742726634,-253.89218119,0.000436,30]
[341297674,1730742726652,-746.10781881,0.000436,30]
[341297675,1730742726661,-172.75622297,0.000436,120]
[341297676,1730742726670,-172.75622297,0.000436,120]
[341297677,1730742726680,-172.75622297,0.000436,120]
[341297678,1730742726691,-172.75622297,0.000436,120]
[341297679,1730742726700,-172.75622297,0.000436,120]
[341297680,1730742726711,-172.75622297,0.000436,120]
[341297681,1730742726720,-300.0,0.000436,15]
[341297682,1730742726729,-172.75622297,0.000436,120]
[341297683,1730742726738,-150.0,0.00043602,2]
[341297684,1730742726747,-150.0,0.0004361,2]
[341297685,1730742726757,-150.0,0.0004361,2]
[341297686,1730742726766,-150.0,0.00043624,2]
[341297687,1730742726775,-150.0,0.00043631,2]
[341297688,1730742726785,-150.0,0.00043635,2]
[341297689,1730742726794,-150.0,0.00043637,2]
[341297690,1730742726803,-150.0,0.00043643,2]
[341297691,1730742726812,-150.0,0.00043646,2]
[341297692,1730742726822,-150.0,0.00043649,2]
[341297693,1730742726832,-150.0,0.0004365,2]
[341297694,1730742726842,-150.0,0.0004365,2]
[341297695,1730742726851,-150.0,0.00043659,2]
[341297696,1730742726862,-150.0,0.00043664,2]
[341297697,1730742726875,-260.15035983,0.00043665,2]
[341297698,1730742726884,-150.0,0.00043672,2]
[341297699,1730742726893,-150.0,0.00043675,2]
[341297700,1730742726903,-150.0,0.00043677,2]
[341297701,1730742726912,-150.0,0.00043683,2]
[341297702,1730742726921,-150.0,0.00043689,2]
[341297703,1730742726930,-150.0,0.00043695,2]
[341297704,1730742726939,-8349.56534702,0.00043698,2]
[341297705,1730742726951,-2000.0,0.00043699,30]
[341297706,1730742726960,-150.0,0.00043699,2]
[341297707,1730742726969,-172.0445,0.000437,2]
[341297708,1730742726977,-398.0,0.000437,30]
[341297709,1730742726987,-220.0,0.000437,2]
[341297710,1730742726995,-196.0,0.000437,30]
[341297711,1730742727004,-300.0,0.000437,15]
[341297712,1730742727014,-150.0,0.000437,120]
[341297713,1730742727023,-600.0,0.000437,120]
[341297714,1730742727032,-150.0,0.00043701,2]
[341297715,1730742727042,-150.0,0.00043704,2]
[341297716,1730742727051,-150.0,0.00043712,2]
[341297717,1730742727060,-150.0,0.00043713,2]
[341297718,1730742727069,-150.0,0.00043713,2]
[341297719,1730742727078,-151.0,0.00043713,14]
[341297720,1730742727087,-150.0,0.00043714,2]
[341297721,1730742727097,-150.0,0.00043722,2]
[341297722,1730742727106,-150.0,0.00043739,2]
[341297723,1730742727115,-150.0,0.00043741,2]
[341297724,1730742727125,-1109.46662799,0.00043743,14]
[341297725,1730742727134,-150.0,0.00043754,2]
[341297726,1730742727143,-150.0,0.00043765,2]
[341297727,1730742727152,-1100.0,0.0004377,3]
[341297728,1730742727161,-150.0,0.00043775,2]
[341297729,1730742727171,-150.0,0.00043787,2]
[341297730,1730742727180,-874.571286,0.0004379,2]
[341297731,1730742727190,-3191.5554203,0.0004379,2]
[341297732,1730742727202,-8338.7065201,0.0004379,2]
[341297733,1730742727212,-1047.346902,0.0004379,14]
[341297734,1730742727221,-151.0,0.0004379,14]
[341297735,1730742727230,-1047.346902,0.0004379,14]
[341297736,1730742727240,-156.853404,0.0004379,7]
[341297737,1730742727249,-461.74884,0.0004379,14]
[341297738,1730742727258,-461.74884,0.0004379,14]
[341297739,1730742727267,-150.0,0.00043791,2]
[341297740,1730742727278,-10000.0,0.00043797,30]
[341297741,1730742727287,-409.2332176,0.00043797,2]
[341297742,1730742727296,-13574.39476632,0.00043798,12]
[341297743,1730742727311,-22962.09038652,0.00043798,12]
[341297744,1730742727322,-1675.35408342,0.00043798,12]
[341297745,1730742727333,-472564.40267798,0.00043798,12]
[341297746,1730742727342,-1688.0,0.00043798,30]
[341297747,1730742727351,-1560.56,0.00043798,45]
[341297748,1730742727361,-1472.36634948,0.00043798,7]
[341297749,1730742727370,-200.0,0.00043798,7]
[341297750,1730742727379,-151.0,0.00043798,14]
[341297751,1730742727389,-151.0,0.00043798,7]
[341297752,1730742727398,-151.0,0.00043798,7]
[341297753,1730742727408,-151.0,0.00043798,14]
[341297754,1730742727417,-284.467436,0.00043798,14]
[341297755,1730742727427,-151.0,0.00043798,14]
[341297756,1730742727436,-151.0,0.00043798,14]
[341297757,1730742727446,-151.0,0.00043798,14]
[341297758,1730742727456,-204.267232,0.00043798,14]
[341297759,1730742727465,-204.267232,0.00043798,14]
[341297760,1730742727474,-151.0,0.00043798,7]
[341297761,1730742727484,-167.40758,0.00043798,7]
[341297762,1730742727493,-151.0,0.00043798,14]
[341297763,1730742727502,-151.0,0.00043798,14]
[341297764,1730742727512,-151.0,0.00043798,14]
[341297765,1730742727521,-151.0,0.00043798,14]
[341297766,1730742727531,-400.0,0.00043799,30]
[341297767,1730742727540,-5112.06251995,0.000438,120]
[341297768,1730742727549,-5100.0,0.000438,26]
[341297769,1730742727559,-393.97628449,0.000438,120]
[341297770,1730742727568,-469.94083791,0.000438,30]
[341297771,1730742727577,-144185.5121574,0.000438,30]
[341297772,1730742727587,-150.83,0.000438,30]
[341297773,1730742727596,-500.0,0.000438,120]
[341297774,1730742727605,-862.2,0.000438,2]
[341297775,1730742727615,-221.81,0.000438,60]
[341297776,1730742727624,-170.09,0.000438,36]
[341297777,1730742727634,-170.09,0.000438,36]
[341297778,1730742727644,-170.09,0.000438,36]
[341297779,1730742727653,-170.09,0.000438,36]
[341297780,1730742727663,-170.09,0.000438,36]
[341297781,1730742727673,-170.09,0.000438,36]
[341297782,1730742727682,-170.09,0.000438,36]
[341297783,1730742727691,-170.09,0.000438,36]
[341297784,1730742727702,-170.09,0.000438,36]
[341297785,1730742727711,-170.09,0.000438,36]
[341297786,1730742727721,-170.09,0.000438,36]
[341297787,1730742727730,-170.09,0.000438,36]
[341297788,1730742727740,-170.09,0.000438,36]
[341297789,1730742727749,-170.09,0.000438,36]
[341297790,1730742727758,-170.09,0.000438,36]
[341297791,1730742727768,-170.09,0.000438,36]
[341297792,1730742727779,-1131.0,0.000438,7]
[341297793,1730742727789,-1387.9099,0.000438,30]
[341297794,1730742727798,-300.0,0.000438,15]
[341297795,1730742727808,-1000.0,0.000438,19]
[341297796,1730742727818,-1047.346902,0.000438,14]
[341297797,1730742727827,-151.0,0.000438,14]
[341297798,1730742727836,-1047.346902,0.000438,14]
[341297799,1730742727846,-461.74884,0.000438,14]
[341297800,1730742727855,-461.74884,0.000438,14]
[341297801,1730742727864,-171.420409,0.000438,14]
[341297802,1730742727877,-828.81974692,0.00043802,30]
[341297803,1730742727887,-5000.0,0.00043812,30]
[341297804,1730742727896,-5000.0,0.00043812,65]
[341297805,1730742727905,-1000.0,0.0004382,19]
[341297806,1730742728032,-788.9637039,0.00043824,2]
[341297807,1730742728051,-703.3561218,0.00043824,2]
[341297808,1730742728063,-617.7485398,0.00043824,2]
[341297809,1730742728074,-532.1409577,0.00043824,2]
[341297810,1730742728084,-446.5333756,0.00043824,2]
[341297811,1730742728094,-500.0,0.00043834,2]
[341297812,1730742728104,-463.0,0.00043834,2]
[341297813,1730742728115,-400.0,0.00043834,30]
[341297814,1730742728125,-400.0,0.00043834,30]
[341297815,1730742728136,-400.0,0.00043834,30]
[341297816,1730742728145,-400.0,0.00043834,30]
[341297817,1730742728155,-1000.0,0.00043835,120]
[341297818,1730742728165,-1000.0,0.00043835,120]
[341297819,1730742728175,-1000.0,0.00043835,120]
[341297820,1730742728184,-1000.0,0.00043835,120]
[341297821,1730742728194,-1000.0,0.00043835,120]
[341297822,1730742728206,-1000.0,0.00043835,120]
[341297823,1730742728215,-1000.0,0.00043835,120]
[341297824,1730742728224,-1000.0,0.00043835,120]
[341297825,1730742728234,-1000.0,0.00043835,120]
[341297826,1730742728244,-1000.0,0.00043835,120]
[341297827,1730742728255,-1000.0,0.00043835,120]
[341297828,1730742728265,-1000.0,0.00043835,120]
[341297829,1730742728274,-1000.0,0.00043835,120]
[341297830,1730742728285,-1000.0,0.00043835,120]
[341297831,1730742728294,-1000.0,0.00043835,120]
[341297832,1730742728303,-1000.0,0.00043835,120]
[341297833,1730742728313,-1000.0,0.00043835,120]
[341297834,1730742728323,-854.4,0.00043835,120]
[341297835,1730742728332,-999.0,0.00043835,120]
[341297836,1730742728342,-596.16272219,0.00043835,120]
[341297837,1730742728351,-250.0,0.00043836,2]
[341297838,1730742728360,-500.0,0.00043836,120]
[341297839,1730742728370,-150.0,0.00043836,120]
[341297840,1730742728379,-157.69322364,0.0004384,120]